Cogmind - Beta 16 @@@ ROGUE MODE // 2025.12.13 @ 06:30:23 Player: Lauriboy Result: Destroyed by H-66 Slayer with Gauss Rifle Performance ------------- Evolutions (1) 500 Regions Visited (5) 1000 Robots Destroyed (20) 100 Value Destroyed (660) 660 Prototype IDs (0) 0 Alien Tech Used (0) 0 Bonus (600) 600 TOTAL SCORE: 2860 Bonus ------- Met Imprinter 300 Was Imprinted 300 Cogmind --------- Core Integrity 0/400 Matter 272/300 Energy 98/100 System Corruption 0% Temperature Cool (0) Movement Core (50) Location -6/Proximity Caves Parts ------- > --- POWER (1) -------- (None) > --- PROPULSION (4) --- (None) > --- UTILITY (2) ------ (None) > --- WEAPON (2) ------- (None) > --- INVENTORY (5) ---- Light Nuclear Core Relay Coupler [Programmer] (57) Plasma Cutter Peak State ------------ > --- POWER ------------ Ion Engine > --- PROPULSION ------- Aluminum Leg Aluminum Leg Aluminum Leg Aluminum Leg > --- UTILITY ---------- Small Storage Unit Light Armor Plating > --- WEAPON ----------- Minigun Heavy Rocket Launcher > --- INVENTORY -------- Makeshift Power Source Aluminum Leg Aluminum Leg Heat Sink Relay Coupler [Programmer] Assault Rifle Heavy Assault Rifle Plasma Cutter [Rating: 15] Favorites ----------- Power Ion Engine Engine Ion Engine Power Core Light Nuclear Core Propulsion Aluminum Leg Leg Aluminum Leg Utility Small Storage Unit Device Heat Sink Storage Small Storage Unit Protection Light Armor Plating Weapon Heavy Assault Rifle Ballistic Gun Heavy Assault Rifle Launcher Heavy Rocket Launcher Build | -11 -10 -9 -9 -7 -6 ------- Run | Yrd Mat Mat Min Zio Pro Slots Evolved 2 | . . 2 . . . Power . | . . . . . . Propulsion 2 | . . 2 . . . Utility . | . . . . . . Weapon . | . . . . . . Parts Attached 23 | 6 3 5 1 3 5 Power 5 | 1 1 . 1 . 2 Engine 4 | 1 . . 1 . 2 Core 1 | . 1 . . . . Reactor . | . . . . . . Propulsion 8 | 2 1 3 . 2 . Treads . | . . . . . . Leg 8 | 2 1 3 . 2 . Wheel . | . . . . . . Hover . | . . . . . . Flight . | . . . . . . Utility 3 | 1 1 . . . 1 Device 1 | . . . . . 1 Storage 1 | 1 . . . . . Processor . | . . . . . . Hackware . | . . . . . . Protection 1 | . 1 . . . . Artifact . | . . . . . . Weapon 7 | 2 . 2 . 1 2 Energy Gun . | . . . . . . Energy Cannon . | . . . . . . Ballistic Gun 6 | 2 . 2 . 1 1 Ballistic Cannon . | . . . . . . Launcher 1 | . . . . . 1 Special Weapon . | . . . . . . Impact Weapon . | . . . . . . Slashing Weapon . | . . . . . . Piercing Weapon . | . . . . . . Special Melee Weapon . | . . . . . . Unidentified Prototypes . | . . . . . . Parts Lost 16 | . . . 1 . 15 Power 4 | . . . 1 . 3 Propulsion 6 | . . . . . 6 Utility 2 | . . . . . 2 Weapon 4 | . . . . . 4 Highest Loss Streak 6 | . . . 1 . 6 To Critical Strikes . | . . . . . . Average Backups 7 | 4 7 7 7 7 5 Power . | . 1 1 . 1 . Propulsion 2 | 2 3 2 2 2 . Utility 1 | . 1 2 2 1 1 Weapon 1 | 1 1 1 2 2 1 Tool/Special . | . . . . . . Unused Backups 12 | . 2 4 . 3 3 Power 2 | . . . . 1 1 Propulsion 4 | . 2 2 . . . Utility 2 | . . . . 1 1 Weapon 3 | . . 2 . 1 . Tool/Special 1 | . . . . . 1 Average Slot Usage (%) 94 | . 91 99 99 100 77 Engine 9 | . 6 . 10 11 9 Core 1 | . 8 11 . . . Leg 39 | . 28 43 44 44 30 Device 1 | . . . . . 7 Storage 11 | . 14 11 11 11 11 Protection 8 | . 6 11 11 11 . Ballistic Gun 21 | . 28 22 22 22 17 Peak Build Rating 15 | 6 9 14 14 14 15 Average Rating 11 | 3 7 11 11 12 11 On Entrance 9 | . 6 9 14 12 14 Avg Prop Armor Cover (%) . | . . . . . . Naked Turns 5 | . . . . . 5 Heaviest Build 21 | 12 15 19 19 19 21 Greatest Support 40 | 20 20 40 40 40 40 Greatest Overweight (x) 2 | 1 . . . . 2 Average Overweight (x) . | . . . . . . Largest Inventory Capacity 8 | 8 8 8 8 8 8 Average Capacity 7 | 7 8 8 8 8 7 Most Carried 8 | 8 8 8 8 8 8 Average Carried 7 | 4 7 7 7 7 5 Final Capacity 8 | 8 8 8 8 8 5 Final Carried 8 | 6 8 8 8 8 3 Class Distribution -------------------- 100% | Mutant Dominant Class ---------------- Mutant | -10/Materials Mutant | -9/Materials Mutant | -9/Mines Mutant | -7/Zion Mutant | -6/Proximity Caves Resources | -11 -10 -9 -9 -7 -6 ----------- Run | Yrd Mat Mat Min Zio Pro Matter Collected 795 | 182 82 55 139 39 298 Remotely . | . . . . . . Salvage Created 621 | . 82 45 139 . 355 Parts 36 | . 5 7 5 . 19 Haulers Intercepted . | . . . . . . Recyclers Shooed . | . . . . . . Parts Field Recycled . | . . . . . . Retrieved Matter . | . . . . . . Parts Self-Destructed 15 | . . . . . 15 Prevented . | . . . . . . Parts Restored . | . . . . . . Kills | -11 -10 -9 -9 -7 -6 ------- Run | Yrd Mat Mat Min Zio Pro Combat Hostiles Destroyed 20 | . 2 3 3 . 12 Guns 17 | . 2 3 3 . 9 AOE 3 | . . . . . 3 Classes Destroyed 4 | . 1 1 . . 2 Drone 1 | . . . . . 1 Swarmer 9 | . . 3 . . 6 Grunt 9 | . 2 . 3 . 4 Sentry 1 | . . . . . 1 Best Kill Streak 4 | . 1 2 3 . 4 Combat Bots Only 4 | . 1 2 3 . 4 Max Kills in Single Turn 1 | . 1 1 1 . 1 Gunslinging . | . . . . . . Exploded 1 | . . . . . 1 Melee . | . . . . . . Uniques/NPCs Destroyed . | . . . . . . Combat | -11 -10 -9 -9 -7 -6 -------- Run | Yrd Mat Mat Min Zio Pro Hostile Shots Fired 208 | . 16 15 28 . 149 Missed 66 | . 6 7 8 . 45 Hits 142 | . 10 8 20 . 104 Projectile 142 | . 10 8 20 . 104 Damage Taken 1993 | . 136 67 254 . 1536 Core 443 | . 36 6 22 . 379 Absorbed by Shields . | . . . . . . Core Remaining (%) 92 | 100 85 . . . . Volleys Fired 76 | . 14 8 9 . 45 Largest 2 | . 2 2 2 . 2 Hottest 64 | . 40 46 46 . 64 Shots Fired 131 | . 28 16 18 . 69 Gun 126 | . 28 16 18 . 64 Cannon . | . . . . . . Launcher 5 | . . . . . 5 Special . | . . . . . . Kinetic 126 | . 28 16 18 . 64 Thermal . | . . . . . . Explosive 5 | . . . . . 5 Electromagnetic . | . . . . . . Robot Hit Streak 13 | . 5 5 6 . 13 Robot Miss Streak 4 | . 3 4 2 . 3 Penetration Max . | . . . . . . Secondary Targets 2 | . . . 2 . . Max Gunslinging Chain 1 | . . . 1 . . Shots Hit Robots 79 | . 18 8 14 . 39 Core Hits 42 | . 7 4 5 . 26 Critical Kills 1 | . . . . . 1 Critical Parts Destroyed . | . . . . . . Critical Strikes 1 | . . . . . 1 Destroy 1 | . . . . . 1 Melee Attacks . | . . . . . . Impact . | . . . . . . Slashing . | . . . . . . Piercing . | . . . . . . Sneak Attacks . | . . . . . . Combat Hostiles . | . . . . . . Follow-up Attacks . | . . . . . . Damage Inflicted 1691 | . 141 101 203 . 1246 Guns 1037 | . 141 101 203 . 592 Cannons . | . . . . . . Explosions 654 | . . . . . 654 Melee . | . . . . . . Ramming . | . . . . . . Kinetic 1037 | . 141 101 203 . 592 Thermal . | . . . . . . Explosive 654 | . . . . . 654 Electromagnetic . | . . . . . . Impact . | . . . . . . Slashing . | . . . . . . Piercing . | . . . . . . Highest Corruption . | . . . . . . Average Corruption . | . . . . . . Corruption Purged . | . . . . . . Corruption Blocked . | . . . . . . Overload Shots . | . . . . . . Overflow Damage 55 | . . . . . 55 Projectiles . | . . . . . . Explosions 55 | . . . . . 55 Melee . | . . . . . . Knockbacks . | . . . . . . Impact . | . . . . . . Kinetic . | . . . . . . Secondary . | . . . . . . Self-Inflicted Damage 144 | . . . . . 144 Shots 4 | . . . . . 4 Rammed . | . . . . . . Targets Rammed . | . . . . . . Kicked . | . . . . . . Crushed . | . . . . . . Highest Temperature 56 | . 33 4 56 . 46 Average Temperature 16 | . 16 3 26 . 12 Received Heat Transfer 459 | . 78 9 144 . 228 Siege Activations . | . . . . . . Martial Activations . | . . . . . . Shielding Activations . | . . . . . . Robots Disrupted . | . . . . . . Combat Hostiles . | . . . . . . Robots Corrupted . | . . . . . . Combat Hostiles . | . . . . . . Parts Fried . | . . . . . . Impact Corruptions . | . . . . . . Robots Melted . | . . . . . . Combat Hostiles . | . . . . . . Parts Melted . | . . . . . . Heat Transferred . | . . . . . . Parts Sabotaged . | . . . . . . Parts Stolen . | . . . . . . Parts Stripped . | . . . . . . Power Chain Reactions . | . . . . . . Alert | -11 -10 -9 -9 -7 -6 ------- Run | Yrd Mat Mat Min Zio Pro Maximum Alert Level . | . . . . . . Low Security (%) 100 | 100 100 100 100 . . Level 1 . | . . . . . . Level 2 . | . . . . . . Level 3 . | . . . . . . Level 4 . | . . . . . . Level 5 . | . . . . . . High Security . | . . . . . . Max Security . | . . . . . . Peak Influence 60 | . 45 50 60 . . Initial 12 | . . 12 3 . . Average 10 | . 9 15 9 . . Influence Increases 470 | . 79 76 70 . 245 Destroy 0b10 Robot/C 380 | . 40 60 60 . 220 Destroy 0b10 Robot/NC 5 | . . . . . 5 Destroy Leader 60 | . 20 10 10 . 20 Successful Hack 10 | . 4 6 . . . Lose Combat Pursuer 15 | . 15 . . . . Influence Decreases 470 | . 49 96 80 . 245 Entered New Map 25 | . . 18 7 . . Time Decay 352 | . 49 78 70 . 155 Lost Part 93 | . . . 3 . 90 Squads Dispatched 3 | . 2 1 . . . Investigation . | . . . . . . Extermination . | . . . . . . Reinforcement 3 | . 2 1 . . . Assault . | . . . . . . Garrison . | . . . . . . Intercept . | . . . . . . Searches Triggered . | . . . . . . Construction Impeded . | . . . . . . Haulers Reinforced . | . . . . . . Active Scanning Responses . | . . . . . . Cargo Convoy Interrupts . | . . . . . . Stealth | -11 -10 -9 -9 -7 -6 --------- Run | Yrd Mat Mat Min Zio Pro Distress Signals . | . . . . . . Communications Jammed . | . . . . . . Distress Signals . | . . . . . . Times Spotted 35 | . 7 7 5 . 16 Peak Tracking Total 5 | . 3 4 3 . 5 Tactical Retreats 1 | . 1 . . . . Traps | -11 -10 -9 -9 -7 -6 ------- Run | Yrd Mat Mat Min Zio Pro Traps Triggered . | . . . . . . Indirectly . | . . . . . . Trap Hack Attempts . | . . . . . . Triggered . | . . . . . . Disarmed . | . . . . . . Reprogrammed . | . . . . . . Reused . | . . . . . . Traps Extracted . | . . . . . . Installed . | . . . . . . Triggered . | . . . . . . Machines | -11 -10 -9 -9 -7 -6 ---------- Run | Yrd Mat Mat Min Zio Pro Machines Disabled . | . . . . . . Max in Single Turn . | . . . . . . Machines Repaired . | . . . . . . Machines Dismantled . | . . . . . . Machines Sabotaged . | . . . . . . Overloaded Fab Kills . | . . . . . . Hacking | -11 -10 -9 -9 -7 -6 --------- Run | Yrd Mat Mat Min Zio Pro Machines Accessed 3 | . 2 1 . . . Terminals 3 | . 2 1 . . . Fabricators . | . . . . . . Repair Stations . | . . . . . . Recycling Units . | . . . . . . Scanalyzers . | . . . . . . Garrison Access . | . . . . . . Total Hacks 7 | . 2 5 . . . Successful 5 | . 2 3 . . . Failed 2 | . . 2 . . . Catastrophic 1 | . . 1 . . . Database Lockouts . | . . . . . . Manual 2 | . . . . 2 . Terminals 7 | . 2 5 . . . Fabricators . | . . . . . . Repair Stations . | . . . . . . Recycling Units . | . . . . . . Scanalyzers . | . . . . . . Garrison Access . | . . . . . . Terminal Hacks 5 | . 2 3 . . . Record 3 | . . 3 . . . Emergency Access Points 1 | . 1 . . . . Locate Traps 1 | . 1 . . . . Fabricator Hacks . | . . . . . . Repair Station Hacks . | . . . . . . Recycling Unit Hacks . | . . . . . . Scanalyzer . | . . . . . . Garrison Access Hacks . | . . . . . . Unauthorized Hacks . | . . . . . . Terminals . | . . . . . . Fabricators . | . . . . . . Repair Stations . | . . . . . . Recycling Units . | . . . . . . Scanalyzers . | . . . . . . Garrison Access . | . . . . . . Data Cores Recovered . | . . . . . . Used . | . . . . . . Hacking Detections 2 | . 1 1 . . . Full Trace Events . | . . . . . . Feedback Events . | . . . . . . Feedback Blocked . | . . . . . . Robot Schematics Acquired 3 | . . . . 3 . Robots Built . | . . . . . . Authchips . | . . . . . . Time . | . . . . . . Total Robot Build Rating . | . . . . . . Part Schematics Acquired 15 | . . . . 15 . Parts Built . | . . . . . . Authchips . | . . . . . . Time . | . . . . . . Total Part Build Rating . | . . . . . . Part Studies Acquired . | . . . . . . Parts Repaired . | . . . . . . Time . | . . . . . . Parts Recycled . | . . . . . . Recycled Matter . | . . . . . . Retrieved Matter . | . . . . . . Retrieved Components . | . . . . . . Parts Scanalyzed . | . . . . . . Part Schematics Acquired . | . . . . . . Parts Damaged . | . . . . . . Bothacking | -11 -10 -9 -9 -7 -6 ------------ Run | Yrd Mat Mat Min Zio Pro Used RIF Installer . | . . . . . . Robots Hacked . | . . . . . . Non-combat . | . . . . . . Combat . | . . . . . . Robot Hacks Applied . | . . . . . . Relay Couplers Released . | . . . . . . Fabnet Peak Effective % . | . . . . . . Robots Rewired . | . . . . . . Allies Hacked . | . . . . . . Hacks Repelled . | . . . . . . Allies | -11 -10 -9 -9 -7 -6 -------- Run | Yrd Mat Mat Min Zio Pro Total Allies 4 | . . . . 4 . Largest Group 4 | . . . . 4 . Highest-Rated Group 155 | . . . . 155 . Highest-Rated Ally 40 | . . . . 40 . Total Orders . | . . . . . . Ally Attacks . | . . . . . . Total Damage . | . . . . . . Kills . | . . . . . . Allies Corrupted . | . . . . . . Allies Melted . | . . . . . . Intel | -11 -10 -9 -9 -7 -6 ------- Run | Yrd Mat Mat Min Zio Pro Active Infowar (turns) . | . . . . . . Robot Analysis Total . | . . . . . . Derelict Logs Recovered 2 | . . . 1 1 . Drone Launches . | . . . . . . Drone Recoveries . | . . . . . . Exploration | -11 -10 -9 -9 -7 -6 ------------- Run | Yrd Mat Mat Min Zio Pro Turns Passed 2827 | 65 273 259 459 1262 509 Spaces Moved 2103 | 45 182 173 356 1035 312 Core 48 | 19 . . . . 29 Treads . | . . . . . . Legs 2055 | 26 182 173 356 1035 283 Wheels . | . . . . . . Hover . | . . . . . . Flight . | . . . . . . Fastest Speed 50 | 50 120 120 120 120 50 Average Speed 119 | 106 120 120 120 120 120 Slowest Speed 190 | 120 120 120 120 120 190 Overloaded Moves . | . . . . . . Propulsion Burnouts . | . . . . . . Robots Hopped . | . . . . . . Potential Cave-ins . | . . . . . . Cave-ins Triggered . | . . . . . . Exploration Rate (%) 41 | 3 28 22 65 89 40 Regions Visited 5 Branch Regions 3 Pre-discovered Areas . | . . . . . . Known Exits Taken . | . . . . . . Unknown Exits Taken 5 | 1 1 1 1 1 . Scrap Searched 3 | . . . . 3 . Spaces Dug . | . . . . . . Terrain Destroyed 83 | . . . . . 83 Melee . | . . . . . . Projectile . | . . . . . . AOE 83 | . . . . . 83 Terrain Rammed . | . . . . . . Walls Destroyed . | . . . . . . Machines Disabled . | . . . . . . Actions | -11 -10 -9 -9 -7 -6 --------- Run | Yrd Mat Mat Min Zio Pro Total 2303 | 62 218 213 370 1058 382 Wait 53 | . 9 15 4 14 11 Move 2098 | 44 181 172 355 1034 312 Hop . | . . . . . . Pick Up 30 | 12 6 6 1 3 2 Fast Attach . | . . . . . . Attach 17 | 6 1 2 1 . 7 Detach . | . . . . . . Swap 12 | . 2 3 . 3 4 Drop 17 | . 5 7 . 4 1 Fire 76 | . 14 8 9 . 45 Melee . | . . . . . . Ram . | . . . . . . Kick . | . . . . . . Crush . | . . . . . . Escape Stasis . | . . . . . . Rewire . | . . . . . . Trap . | . . . . . . Miscellaneous . | . . . . . . Route ------- -11/Scrapyard -10/Materials -9/Materials -9/Mines (discovered 2 exits: Mat / *Zio) -7/Zion -6/Proximity Caves History --------- Turn | Location | Event 13 | -11/Scrapyard | Discovered new exit (range 15) 66 | -11/Scrapyard | Entered Materials 223 | -10/Materials | Discovered new exit (range 16) 316 | -10/Materials | Build established: Mutant 339 | -10/Materials | Entered another Materials area 339 | -9/Materials | Evolved 2 slots: Propulsion x2 573 | -9/Materials | Discovered new exit (range 7) 598 | -9/Materials | Entered Mines 864 | -9/Mines | Identified exit to Materials 877 | -9/Mines | A Derelict revealed a hidden shortcut to a safe place 1057 | -9/Mines | Entered Zion 1076 | -7/Zion | Received a visual enhancement algorithm 1079 | -7/Zion | Ran a visual enhancement algorithm 1131 | -7/Zion | Discovered new exit (range 15) 1606 | -7/Zion | Found Relay Coupler [Programmer] 1966 | -7/Zion | Met Imprinter 1989 | -7/Zion | Imprinted 1991 | -7/Zion | Declared Zion's savior 2135 | -7/Zion | Ran a visual enhancement algorithm 2319 | -7/Zion | Entered Proximity Caves 2321 | -6/Proximity Caves | Spotter reported a threat 2322 | -6/Proximity Caves | Spotter reported a threat 2343 | -6/Proximity Caves | Attracted the attention of an 0b10 checkpoint 2657 | -6/Proximity Caves | Spotter reported a threat 2680 | -6/Proximity Caves | Core integrity fell below 50% 2729 | -6/Proximity Caves | Lost 6 parts (1p2n3w) 2823 | -6/Proximity Caves | Core integrity fell below 20% 2828 | -6/Proximity Caves | Destroyed by H-66 Slayer with Gauss Rifle Last Messages --------------- Acquired 52 matter. Acquired 25 matter. Acquired Lgt. Nuclear Core. Acquired 24 matter. Penetrated by Slug. Slug penetrates Wall. Aluminum Leg destroyed. Slug penetrates Wall. Wall collapses. Penetrated by Slug. Heat Sink destroyed. Penetrated by Slug. Lgt. Ion Engine destroyed. Penetrated by Slug. Aluminum Leg destroyed. Penetrated by Slug. Assault Rifle destroyed. Penetrated by Slug. Dropped Sml. Storage Unit. Penetrated by Slug. Map ----- +----------------------------------------------------+ | ?## ### ##???????####?????????????????????? | | ??# #?### ######### ###???????????????????? | | ??# #???# ## ##??????????????????? | | ??# #???# ## ##?????????????????? | | ??# #???###### #?????????????????? | | #?# ########### ## #?????????????????? | | #?# ### ### ##?????????????????? | | #?# "" ### #?## #??????????????????? | | ### """" " ## ##?## #??????????????????? | | "" "" #??# #??????????????????? | | ### """ #### #??????????????????? | | ??## " " """ ####???????????????? | | ???# " "" ##??????????????? | | ??? "" ### #??????????????? | | ??# ###### #?## #??????????????? | | ??####???# ??# ! ## ##??????????????? | | ?????????# ??# #?####???????????????? | | ?????????# ??#### #????????????????????? | | ?????????# #????## #????????????????????? | | ????????? ?????## #####????????????????? | | ????????# ??????# #????????????????? | | ###?????### ???????## ##????????????????? | | #???????# ????????## ##?????????????????? | | #????????## ?????????# ##??????????????????? | | #???????????###????????## ##???????????????????? | | ???????????????????????# @ #????????????????????? | | ???????????????????? ???????????????? | | ????????????????# #????????????? | | ????????????????## #########????????????? | | ?????????????????####### ####????????????????????? | | ???????????????????????##????????????????????????? | | ?????????????????????????????????????????????????? | | ?????????????????????????????????????????????????? | | ?????????????????????????????????????????????????? | | ?????????????????????????????????????????????????? | | ?????????????????????????????????????????????????? | | ?????????????????????????????????????????????????? | | ?????????????????????????????????????????????????? | | ?????????????????????????????????????????????????? | | ?????????????????????????????????????????????????? | | ?????????????????????????????????????????????????? | | ?????????????????????????????????????????????????? | | ?????????????????????????????????????????????????? | | ?????????????????????????????????????????????????? | | ?????????????????????????????????????????????????? | | ?????????????????????????????????????????????????? | | | | | | | | | +----------------------------------------------------+ Best States ------------- Heat Dissipation 38 Energy Generation 15 Energy Capacity 250 Matter Stores 300 Matter Capacity 300 Sight Range 16 Terrain Scan Density 10 Armor Coverage 150 Evasion (%) 55 Item Schematics ----------------- Spear | -7/Zion | Archive Stasis Canceller | -7/Zion | Archive Gatling Laser | -7/Zion | Archive Proton Cannon | -7/Zion | Archive Adv. Terrain Scan Processor | -7/Zion | Archive Phase Shifter | -7/Zion | Archive Xenon Bombardment Thruster | -7/Zion | Archive Adv. Terrain Scanner | -7/Zion | Archive System Restoration Module | -7/Zion | Archive Adv. Cooling System | -7/Zion | Archive Adv. System Restoration Module | -7/Zion | Archive Med. Treads | -7/Zion | Archive Adv. ECM Suite | -7/Zion | Archive Energy Well | -7/Zion | Archive Hvy. Flak Cannon | -7/Zion | Archive Robot Schematics ------------------ A-02 Transporter | -7/Zion | Archive W-25 Informer | -7/Zion | Archive B-48 Gladiator | -7/Zion | Archive Fabricated ------------ Nothing Repaired ---------- Nothing Studied --------- None Alien Tech Used ----------------- None Achievements -------------- None Challenges ------------ None Game ------ Seed CoordinationColdGreatsword Manual? 0 Play Time 00:38:44 Cumulative 21.4 hours Start 2025.12.13 @ 05:39:52 End 2025.12.13 @ 06:30:23 Sessions 1 Manual Loads 0 Difficulty Rogue Special Mode None Game No. 24 Rogue 24 Adventurer 0 Explorer 0 Win Type - Total 0 Types 0/0/0/0/0/0/0/0/0/0 Lore% 11 Gallery% 17 Achievement% 16 Wizard Run 0 Options --------- Layout 1 ASCII 0 Keyboard 0 Movement Mouse Keybinds 0 Fullscreen 1 Font 16/SmallcapsGlow Map View 50x40 Zoom Use 53% Tactical HUD 0 Map Filters NONE Filters NONE Steam SD RUN: bf7ec45c-3009-403c-8121-3b3a30dd4ed1